{"text_format":"1","workbook":"xlsx","n_sheets":3,"sheets":["Hoja1","Hoja1 (2)","Hoja2"],"not_rendered":{"charts":0,"images":3,"macros":1,"external_links":0,"defined_names":2,"comments":0,"pivot_tables":0},"unopened":[],"bounds":{"document_bytes":16777216,"sheet_cells":100000,"rows_first":2000,"rows_last":500,"rows_between":2000,"halvings":0,"cell_chars":16384,"cell_head_chars":4096},"cells_cut":0,"cells_raw":0,"read":"whole","date_system":"1900"}

{"sheet":"Hoja1","index":0,"n_rows":260,"n_cols":33,"rows_kept":260,"cut":false,"hidden":false,"merged":[[249,0,249,12],[249,14,249,24],[251,0,251,12],[251,14,251,24],[215,0,215,16],[215,18,215,22],[245,23,245,24],[245,21,245,22],[245,14,245,18],[241,19,241,24],[242,10,242,12],[241,14,242,18],[245,0,245,4],[243,5,243,6],[243,21,243,22],[244,21,244,22],[245,19,245,20],[245,7,245,9],[245,10,245,12],[243,10,243,12],[247,21,247,22],[225,1,225,5],[225,9,225,12],[242,5,242,6],[225,18,225,19],[226,20,226,21],[243,23,243,24],[0,0,0,24],[236,0,236,24],[237,0,237,24],[224,20,224,21],[222,9,222,12],[223,9,223,12],[207,0,207,24],[108,3,108,12],[120,3,120,12],[109,0,109,2],[172,15,172,24],[173,15,173,24],[174,0,174,2],[206,0,206,24],[222,13,222,14],[222,6,222,8],[223,6,223,8],[224,6,224,8],[224,9,224,12],[223,15,223,17],[224,15,224,17],[244,23,244,24],[234,0,234,24],[247,23,247,24],[203,0,203,3],[259,0,259,4],[213,22,213,24],[230,0,230,24],[231,0,231,24],[232,0,232,24],[233,0,233,24],[224,22,224,24],[259,6,259,10],[256,0,256,24],[255,0,255,24],[257,0,257,24],[225,15,225,17],[220,20,220,21],[225,20,225,21],[222,20,222,21],[223,20,223,21],[243,19,243,20],[208,0,209,24],[247,14,247,18],[244,14,244,18],[222,18,222,19],[223,18,223,19],[224,18,224,19],[224,13,224,14],[222,15,222,17],[223,13,223,14],[108,15,108,24],[117,0,118,24],[60,23,60,24],[61,23,61,24],[123,15,123,24],[116,0,116,24],[115,0,115,24],[123,0,123,2],[123,3,123,12],[123,13,123,14],[120,15,120,24],[160,3,160,12],[125,4,125,6],[162,3,162,12],[162,13,162,14],[162,15,162,24],[164,0,164,3],[164,4,164,6],[55,14,55,19],[87,0,87,3],[235,0,235,24],[67,0,67,24],[175,15,175,24],[174,15,174,24],[160,15,160,24],[159,15,159,24],[180,0,180,24],[177,13,177,15],[181,0,181,24],[177,8,177,12],[177,23,177,24],[177,0,177,3],[177,4,177,6],[109,3,109,12],[120,0,120,2],[112,23,112,24],[110,15,110,24],[109,13,109,14],[135,15,135,24],[134,15,134,24],[129,0,129,24],[128,0,128,24],[173,3,173,12],[185,0,185,2],[187,15,187,24],[164,8,164,12],[164,13,164,15],[164,23,164,24],[162,0,162,2],[148,15,148,24],[154,0,154,24],[148,13,148,14],[159,13,159,14],[160,13,160,14],[149,0,149,2],[149,3,149,12],[149,13,149,14],[156,0,157,24],[155,0,155,24],[159,0,159,2],[159,3,159,12],[160,0,160,2],[151,23,151,24],[146,0,146,2],[135,0,135,2],[148,3,148,12],[146,15,146,24],[136,3,136,12],[136,13,136,14],[136,15,136,24],[135,13,135,14],[133,13,133,14],[133,15,133,24],[146,13,146,14],[147,0,147,2],[147,15,147,24],[147,13,147,14],[70,17,70,19],[70,20,70,22],[200,0,200,2],[199,0,199,2],[199,3,199,12],[199,13,199,14],[199,15,199,24],[198,0,198,2],[198,3,198,12],[198,13,198,14],[198,15,198,24],[188,0,188,2],[188,3,188,12],[188,13,188,14],[188,15,188,24],[190,0,190,3],[193,0,193,24],[194,0,194,24],[125,0,125,3],[161,13,161,14],[161,15,161,24],[161,0,161,2],[121,3,121,12],[103,0,103,24],[195,0,196,24],[172,0,172,2],[172,3,172,12],[172,13,172,14],[173,0,173,2],[175,0,175,2],[221,15,221,17],[203,4,203,6],[203,8,203,12],[203,13,203,15],[190,8,190,12],[186,13,186,14],[187,0,187,2],[187,3,187,12],[187,13,187,14],[186,15,186,24],[173,13,173,14],[182,0,183,24],[174,3,174,12],[174,13,174,14],[175,3,175,12],[175,13,175,14],[200,3,200,12],[190,4,190,6],[94,15,94,24],[82,15,82,24],[151,4,151,6],[83,3,83,12],[138,0,138,3],[138,4,138,6],[138,8,138,12],[133,0,133,2],[133,3,133,12],[136,0,136,2],[151,8,151,12],[151,13,151,15],[94,3,94,12],[107,15,107,24],[110,3,110,12],[122,3,122,12],[122,13,122,14],[87,8,87,12],[95,0,95,2],[90,0,90,24],[87,23,87,24],[125,13,125,15],[125,23,125,24],[108,0,108,2],[130,0,131,24],[149,15,149,24],[151,0,151,3],[135,3,135,12],[60,3,60,5],[61,3,61,5],[74,7,74,12],[60,6,60,10],[61,6,61,10],[147,3,147,12],[69,13,69,16],[71,13,71,16],[60,0,60,2],[61,0,61,2],[60,11,60,13],[72,7,72,12],[122,15,122,24],[134,0,134,2],[134,3,134,12],[146,3,146,12],[72,13,72,16],[125,8,125,12],[83,15,83,24],[83,0,83,2],[71,1,71,6],[71,7,71,12],[82,3,82,12],[74,17,74,19],[61,11,61,13],[84,3,84,12],[62,6,62,10],[84,0,84,2],[80,0,80,24],[62,0,62,5],[62,11,62,17],[63,11,63,17],[75,23,75,24],[63,6,63,10],[65,0,65,24],[61,14,61,19],[69,23,69,24],[71,17,71,19],[71,20,71,22],[71,23,71,24],[72,23,72,24],[70,1,70,6],[70,7,70,12],[70,13,70,16],[40,0,40,6],[55,11,55,13],[84,15,84,24],[69,1,69,6],[85,0,85,2],[84,13,84,14],[148,0,148,2],[120,13,120,14],[112,0,112,3],[112,4,112,6],[73,13,73,16],[74,1,74,6],[73,7,73,12],[74,23,74,24],[75,20,75,22],[73,20,73,22],[104,0,105,24],[96,15,96,24],[107,0,107,2],[138,13,138,15],[138,23,138,24],[141,0,141,24],[142,0,142,24],[143,0,144,24],[43,7,43,12],[73,23,73,24],[73,17,73,19],[74,13,74,16],[73,1,73,6],[58,0,58,2],[59,0,59,2],[59,6,59,10],[57,11,57,13],[46,0,47,12],[44,0,44,5],[43,0,43,5],[48,10,48,24],[52,0,52,2],[52,3,52,5],[55,3,55,5],[55,0,55,2],[43,14,43,19],[44,14,44,19],[44,21,44,24],[43,21,43,24],[44,7,44,12],[57,14,57,19],[59,14,59,19],[37,18,37,24],[39,0,39,6],[39,9,39,15],[69,17,69,19],[95,15,95,24],[76,0,77,16],[72,17,72,19],[72,20,72,22],[37,12,37,13],[37,15,37,16],[37,0,37,10],[39,18,39,24],[57,0,57,2],[53,23,54,24],[50,0,50,24],[46,21,46,22],[56,14,56,19],[56,3,56,5],[57,3,57,5],[48,0,48,9],[40,9,40,15],[40,18,40,24],[68,0,68,24],[53,0,54,2],[36,15,36,16],[29,0,29,6],[29,9,29,15],[36,0,36,10],[36,12,36,13],[36,18,36,24],[34,9,34,15],[34,18,34,24],[34,0,34,6],[35,0,35,24],[29,18,29,24],[31,0,31,6],[32,0,32,6],[31,18,31,24],[32,18,32,24],[25,12,25,13],[28,0,28,6],[20,0,20,6],[25,18,25,24],[25,15,25,16],[26,15,26,16],[28,18,28,24],[25,0,25,10],[26,12,26,13],[26,0,26,10],[22,0,22,6],[22,18,22,24],[23,18,23,24],[23,0,23,6],[28,9,28,15],[26,18,26,24],[246,19,246,20],[246,21,246,22],[246,23,246,24],[225,13,225,14],[102,0,102,24],[99,0,99,3],[99,4,99,6],[96,0,96,2],[96,3,96,12],[96,13,96,14],[99,13,99,15],[99,23,99,24],[97,0,97,2],[97,3,97,12],[112,8,112,12],[107,13,107,14],[99,8,99,12],[122,0,122,2],[121,13,121,14],[121,15,121,24],[112,13,112,15],[110,13,110,14],[121,0,121,2],[109,15,109,24],[1,0,2,24],[7,0,9,24],[20,21,20,22],[19,9,19,15],[20,9,20,15],[17,0,17,6],[17,9,17,15],[19,0,19,6],[14,0,14,6],[3,0,4,24],[5,9,5,24],[13,18,13,24],[14,18,14,24],[11,0,11,24],[6,9,6,24],[13,9,13,15],[14,9,14,15],[13,0,13,6],[16,0,16,6],[16,18,16,24],[17,18,17,24],[19,18,19,24],[16,9,16,15],[46,13,46,17],[56,11,56,13],[62,18,62,24],[63,18,63,24],[56,0,56,2],[56,6,56,10],[72,1,72,6],[74,20,74,22],[79,0,79,24],[63,0,63,5],[55,23,55,24],[52,11,52,13],[52,21,52,22],[53,20,54,20],[53,21,54,22],[69,7,69,12],[70,23,70,24],[69,20,69,22],[59,11,59,13],[57,6,57,10],[59,23,59,24],[57,23,57,24],[60,14,60,19],[53,3,54,5],[52,6,52,10],[53,6,54,10],[53,11,54,13],[134,13,134,14],[91,0,91,24],[92,0,93,24],[85,15,85,24],[87,13,87,15],[85,13,85,14],[108,13,108,14],[110,0,110,2],[107,3,107,12],[95,13,95,14],[97,15,97,24],[97,13,97,14],[95,3,95,12],[87,4,87,6],[85,3,85,12],[82,13,82,14],[94,0,94,2],[94,13,94,14],[83,13,83,14],[52,23,52,24],[82,0,82,2],[52,14,52,19],[53,14,54,19],[59,3,59,5],[56,23,56,24],[190,13,190,15],[203,23,203,24],[243,14,243,18],[243,7,243,9],[243,0,243,4],[161,3,161,12],[167,0,167,24],[168,0,168,24],[169,0,170,24],[185,3,185,12],[185,13,185,14],[185,15,185,24],[228,0,228,24],[56,21,56,22],[55,21,55,22],[57,21,57,22],[59,21,59,22],[60,21,60,22],[61,21,61,22],[55,6,55,10],[244,0,244,4],[244,5,244,6],[244,7,244,9],[247,0,247,4],[246,5,246,6],[247,5,247,6],[246,7,246,9],[246,10,246,12],[247,7,247,9],[247,10,247,12],[246,0,246,4],[246,14,246,18],[245,5,245,6],[200,13,200,14],[200,15,200,24],[201,0,201,2],[201,3,201,12],[201,13,201,14],[201,15,201,24],[244,10,244,12],[225,22,225,24],[225,6,225,8],[242,21,242,22],[242,19,242,20],[239,14,239,24],[239,0,239,12],[210,0,211,24],[221,6,221,8],[221,1,221,5],[221,13,221,14],[213,18,213,21],[223,22,223,24],[220,18,220,19],[222,22,222,24],[221,9,221,12],[259,15,259,19],[259,20,259,24],[190,23,190,24],[186,0,186,2],[186,3,186,12],[226,22,226,24],[253,0,253,12],[253,14,253,24],[241,0,242,4],[241,5,241,12],[242,7,242,9],[242,23,242,24],[221,18,221,19],[218,0,218,24],[220,1,220,5],[220,6,220,8],[220,9,220,12],[220,13,220,14],[220,15,220,17],[221,20,221,21],[221,22,221,24],[220,22,220,24],[244,19,244,20],[247,19,247,20]]}
[]
["FICHA DE POSTULACIÓN"]
[]
[]
[]
["PUESTO O CARGO AL QUE POSTULA"]
["NÚMERO DE CONVOCATORIA AL QUE POSTULA "]
["Estimado postulante, complete la información solicitada,  sin modificar la configuración del formato. Lo señalado en el presente documento cuenta con el carácter de Declaración Jurada."]
[]
[]
[]
["I. DATOS PERSONALES (De acuerdo a lo  registrado en su DNI)"]
[]
[]
["Apellido paterno",null,null,null,null,null,null,null,null,"Apellido materno",null,null,null,null,null,null,null,null,"Nombres"]
[]
[]
["Lugar de nacimiento",null,null,null,null,null,null,null,null,"Fecha de nacimiento (dd/mm/aaaa)",null,null,null,null,null,null,null,null,"Nacionalidad"]
[]
["Seleccione…",null,null,null,null,null,null,null,null,"Seleccione…"]
["Estado civil",null,null,null,null,null,null,null,null,"Género",null,null,null,null,null,null,null,null,null,null,null,"DNI"]
[]
[]
["C. Extranjería",null,null,null,null,null,null,null,null,null,null,null,null,null,null,null,null,null,"RUC"]
[]
[]
["Dirección",null,null,null,null,null,null,null,null,null,null,null,"N°",null,null,"Dpto.",null,null,"Referencia"]
[]
[]
["Distrito",null,null,null,null,null,null,null,null,"Provincia",null,null,null,null,null,null,null,null,"Departamento"]
[]
[]
["N° Código CONADIS",null,null,null,null,null,null,null,null,null,null,null,null,null,null,null,null,null,"N° Carnet de Fuerza Armada"]
[]
[]
["DOMICILIO ACTUAL (Consignar en caso sea distinto al descrito en RENIEC)"]
[]
["Dirección",null,null,null,null,null,null,null,null,null,null,null,"N°",null,null,"Dpto",null,null,"Referencia"]
[]
[]
["Distrito",null,null,null,null,null,null,null,null,"Provincia",null,null,null,null,null,null,null,null,"Departamento"]
[]
[]
[]
["Teléfono fijo ",null,null,null,null,null,null,"Celular ",null,null,null,null,null,null,"Correo electrónico personal",null,null,null,null,null,null,"N° Brevete"]
[]
["Seleccione el medio por el que se informó de la Convocatoria:",null,null,null,null,null,null,null,null,null,null,null,null,"Seleccione…"]
[]
["Especificar ( en caso seleccione OTROS): "]
[]
["II. FORMACIÓN ACADÉMICA"]
[]
["Tipo de formación",null,null,"Especialidad",null,null,"Situación (incompleto, egresado, bachiller o titulado)",null,null,null,null,"Último ciclo de estudios concluidos (de encontrarse en curso )",null,null,"Centro de estudios",null,null,null,null,null,"Fecha inicio de estudios (indicar al menos mes y año)","Fecha término de estudios (indicar al menos mes y año)",null,"Fecha de expedición de certificación (*)"]
["Universitaria",null,null,null,null,null,"Seleccione.."]
[]
["Técnica básica    (1 a 2 años)",null,null,null,null,null,"Seleccione.."]
["Técnica superior (3 a 4 años)",null,null,null,null,null,"Seleccione.."]
["Secundaria",null,null,null,null,null,"Seleccione.."]
["Estudios de Post Grado"]
["Doctorado",null,null,null,null,null,"Seleccione.."]
["Maestría",null,null,null,null,null,"Seleccione.."]
["Segunda Especialización",null,null,null,null,null,"Seleccione.."]
["Información a consignar por postulantes profesionales Titulados y Colegiados",null,null,null,null,null," N° colegiatura",null,null,null,null,"Colegio Profesional",null,null,null,null,null,null,"Habilitación profesional vigente"]
[null,null,null,null,null,null,null,null,null,null,null,null,null,null,null,null,null,null,"Seleccione.."]
[]
["(*) Consignar la fecha de expedición del título, grado académico o certificado de estudios secundarios concluidos, según corresponda al nivel alcanzado y solicitado en el aviso de convocatoria. "]
[]
["Cursos y/o Programas de especialización"]
[]
["N°","Centro de estudios",null,null,null,null,null,"Tipo de capacitación",null,null,null,null,null,"Nombre de la capacitación",null,null,null,"Fecha de inicio \n(dd/mm/aaaa)",null,null,"Fecha de término\n(dd/mm/aaaa)",null,null,"N° de Horas lectivas "]
[1,null,null,null,null,null,null,"Seleccione.."]
[2,null,null,null,null,null,null,"Seleccione.."]
[3,null,null,null,null,null,null,"Seleccione.."]
[4,null,null,null,null,null,null,"Seleccione.."]
[5,null,null,null,null,null,null,"Seleccione.."]
[null,null,null,null,null,null,null,null,null,null,null,null,null,null,null,null,null,null,null,null,"TOTAL",null,null,{"$f":"SUM(X71:X75)","v":0}]
["Nota: Cada curso de especialización a consignar debe ser concluido y contener como mínimo 12 horas de capacitación y los diplomados no menos de 90 horas (Salvo indicación distinta señalada en la convocatoria)."]
[]
[]
["III. EXPERIENCIA LABORAL ESPECÍFICA (Relacionada directamente con el puesto, considerando lo establecido en la convocatoria. De haber ocupado más de un puesto en la misma entidad, consignar cada uno de ellos)"]
["La experiencia laboral requerida en este rubro corresponde al desempeño  de funciones en puestos que tienen  similitud con la vacante en concurso. De requerirse un nivel mínimo de desempeño en un cargo, éste será indicado en el aviso de convocatoria. Es indispensable detallar las funciones específicas desarrolladas."]
[]
["1. Empresa \n         y/o \n     Institución",null,null,null,null,null,null,null,null,null,null,null,null,"Tipo Sector/Giro del Negocio  y N° de trabajadores"]
["Unidad Orgánica/Área",null,null,null,null,null,null,null,null,null,null,null,null,"Puesto/Cargo"]
["Remuneración mensual fija (bruta)",null,null,null,null,null,null,null,null,null,null,null,null,"Motivo de retiro"]
["Jefe inmediato (Nombre ,cargo y teléfono)",null,null,null,null,null,null,null,null,null,null,null,null,"N° de personas a cargo"]
[]
["Fecha de inicio (dd/mm/aaaa)",null,null,null,null,null,null,null,"Fecha de término  (dd/mm/aaaa)",null,null,null,null,null,null,null,null,"Tiempo laborado en meses",null,null,null,null,null,{"$f":"DATEDIF(E88,N88,\"y\") & \" años \" & DATEDIF(E88,N88,\"ym\") & \" meses \" & DATEDIF(E88,N88,\"md\") & \" días\"","v":"0 años 0 meses 0 días"},null,null,null,null,{"$f":"N88-E88","v":0},null,null,null,{"$f":"DATEDIF(E88,N88,\"d\")","v":0}]
[]
["Descripción de las funciones principales relacionadas al puesto:"]
[]
["Otras Referencia Laborales: Nombres /puesto/teléfono fijo y celular"]
[]
[]
["2. Empresa \n         y/o \n     Institución",null,null,null,null,null,null,null,null,null,null,null,null,"Tipo Sector/Giro del Negocio  y N° de trabajadores"]
["Unidad Orgánica/Área",null,null,null,null,null,null,null,null,null,null,null,null,"Puesto/Cargo"]
["Remuneración mensual fija (bruta)",null,null,null,null,null,null,null,null,null,null,null,null,"Motivo de retiro"]
["Jefe inmediato (Nombre ,cargo y teléfono)",null,null,null,null,null,null,null,null,null,null,null,null,"N° de personas a cargo"]
[]
["Fecha de inicio (dd/mm/aaaa)",null,null,null,null,null,null,null,"Fecha de término  (dd/mm/aaaa)",null,null,null,null,null,null,null,null,"Tiempo laborado en meses",null,null,null,null,null,{"$f":"DATEDIF(E100,N100,\"y\") & \" años \" & DATEDIF(E100,N100,\"ym\") & \" meses \" & DATEDIF(E100,N100,\"md\") & \" días\"","v":"0 años 0 meses 0 días"},null,null,null,null,{"$f":"N100-E100","v":0},null,null,null,{"$f":"DATEDIF(E100,N100,\"d\")","v":0}]
[]
["Descripción de las funciones principales relacionadas al puesto:"]
[]
["Otras Referencias Laborales: Nombres /puesto/teléfono fijo u celular"]
[]
[]
[]
["3. Empresa \n         y/o \n     Institución",null,null,null,null,null,null,null,null,null,null,null,null,"Tipo Sector/Giro del Negocio  y N° de trabajadores"]
["Unidad Orgánica/Área",null,null,null,null,null,null,null,null,null,null,null,null,"Puesto/Cargo"]
["Remuneración mensual fija (bruta)",null,null,null,null,null,null,null,null,null,null,null,null,"Motivo de retiro"]
["Jefe inmediato (Nombre ,cargo y teléfono)",null,null,null,null,null,null,null,null,null,null,null,null,"N° de personas a cargo"]
[]
["Fecha de inicio (dd/mm/aaaa)",null,null,null,null,null,null,null,"Fecha de término  (dd/mm/aaaa)",null,null,null,null,null,null,null,null,"Tiempo laborado en meses",null,null,null,null,null,{"$f":"DATEDIF(E113,N113,\"y\") & \" años \" & DATEDIF(E113,N113,\"ym\") & \" meses \" & DATEDIF(E113,N113,\"md\") & \" días\"","v":"0 años 0 meses 0 días"},null,null,null,null,{"$f":"N113-E113","v":0},null,null,null,{"$f":"DATEDIF(E113,N113,\"d\")","v":0}]
[]
["Descripción de las funciones principales relacionadas al puesto:"]
[]
["Otras Referencias Laborales: Nombres /puesto/teléfono fijo u celular"]
[]
[]
[]
["4. Empresa \n         y/o \n     Institución",null,null,null,null,null,null,null,null,null,null,null,null,"Tipo Sector/Giro del Negocio  y N° de trabajadores"]
["Unidad Orgánica/Área",null,null,null,null,null,null,null,null,null,null,null,null,"Puesto/Cargo"]
["Remuneración mensual fija (bruta)",null,null,null,null,null,null,null,null,null,null,null,null,"Motivo de retiro"]
["Jefe inmediato (Nombre ,cargo y teléfono)",null,null,null,null,null,null,null,null,null,null,null,null,"N° de personas a cargo"]
[]
["Fecha de inicio (dd/mm/aaaa)",null,null,null,null,null,null,null,"Fecha de término  (dd/mm/aaaa)",null,null,null,null,null,null,null,null,"Tiempo laborado en meses",null,null,null,null,null,{"$f":"DATEDIF(E126,N126,\"y\") & \" años \" & DATEDIF(E126,N126,\"ym\") & \" meses \" & DATEDIF(E126,N126,\"md\") & \" días\"","v":"0 años 0 meses 0 días"},null,null,null,null,{"$f":"N126-E126","v":0},null,null,null,{"$f":"DATEDIF(E126,N126,\"d\")","v":0}]
[]
["Descripción de las funciones principales relacionadas al puesto:"]
[]
["Otras Referencias Laborales: Nombres /puesto/teléfono fijo u celular"]
[]
[]
[]
["5. Empresa \n         y/o \n     Institución",null,null,null,null,null,null,null,null,null,null,null,null,"Tipo Sector/Giro del Negocio  y N° de trabajadores"]
["Unidad Orgánica/Área",null,null,null,null,null,null,null,null,null,null,null,null,"Puesto/Cargo"]
["Remuneración mensual fija (bruta)",null,null,null,null,null,null,null,null,null,null,null,null,"Motivo de retiro"]
["Jefe inmediato (Nombre ,cargo y teléfono)",null,null,null,null,null,null,null,null,null,null,null,null,"N° de personas a cargo"]
[]
["Fecha de inicio (dd/mm/aaaa)",null,null,null,null,null,null,null,"Fecha de término  (dd/mm/aaaa)",null,null,null,null,null,null,null,null,"Tiempo laborado en meses",null,null,null,null,null,{"$f":"DATEDIF(E139,N139,\"y\") & \" años \" & DATEDIF(E139,N139,\"ym\") & \" meses \" & DATEDIF(E139,N139,\"md\") & \" días\"","v":"0 años 0 meses 0 días"},null,null,null,null,{"$f":"N139-E139","v":0},null,null,null,{"$f":"DATEDIF(E139,N139,\"d\")","v":0}]
[]
["Descripción de las funciones principales relacionadas al puesto:"]
[]
["Otras Referencias Laborales: Nombres /puesto/teléfono fijo u celular"]
[]
[]
[]
["6. Empresa \n         y/o \n     Institución",null,null,null,null,null,null,null,null,null,null,null,null,"Tipo Sector/Giro del Negocio  y N° de trabajadores"]
["Unidad Orgánica/Área",null,null,null,null,null,null,null,null,null,null,null,null,"Puesto/Cargo"]
["Remuneración mensual fija (bruta)",null,null,null,null,null,null,null,null,null,null,null,null,"Motivo de retiro"]
["Jefe inmediato (Nombre ,cargo y teléfono)",null,null,null,null,null,null,null,null,null,null,null,null,"N° de personas a cargo"]
[]
["Fecha de inicio (dd/mm/aaaa)",null,null,null,null,null,null,null,"Fecha de término  (dd/mm/aaaa)",null,null,null,null,null,null,null,null,"Tiempo laborado en meses",null,null,null,null,null,{"$f":"DATEDIF(E152,N152,\"y\") & \" años \" & DATEDIF(E152,N152,\"ym\") & \" meses \" & DATEDIF(E152,N152,\"md\") & \" días\"","v":"0 años 0 meses 0 días"},null,null,null,null,{"$f":"N152-E152","v":0},null,null,null,{"$f":"DATEDIF(E152,N152,\"d\")","v":0}]
[]
["Descripción de las funciones principales relacionadas al puesto:"]
[]
["Otras Referencias Laborales: Nombres /puesto/teléfono fijo u celular"]
[]
[]
[]
["7. Empresa \n         y/o \n     Institución",null,null,null,null,null,null,null,null,null,null,null,null,"Tipo Sector/Giro del Negocio  y N° de trabajadores"]
["Unidad Orgánica/Área",null,null,null,null,null,null,null,null,null,null,null,null,"Puesto/Cargo"]
["Remuneración mensual fija (bruta)",null,null,null,null,null,null,null,null,null,null,null,null,"Motivo de retiro"]
["Jefe inmediato (Nombre ,cargo y teléfono)",null,null,null,null,null,null,null,null,null,null,null,null,"N° de personas a cargo"]
[]
["Fecha de inicio (dd/mm/aaaa)",null,null,null,null,null,null,null,"Fecha de término  (dd/mm/aaaa)",null,null,null,null,null,null,null,null,"Tiempo laborado en meses",null,null,null,null,null,{"$f":"DATEDIF(E165,N165,\"y\") & \" años \" & DATEDIF(E165,N165,\"ym\") & \" meses \" & DATEDIF(E165,N165,\"md\") & \" días\"","v":"0 años 0 meses 0 días"},null,null,null,null,{"$f":"N165-E165","v":0},null,null,null,{"$f":"DATEDIF(E165,N165,\"d\")","v":0}]
[]
["Descripción de las funciones principales relacionadas al puesto:"]
[]
["Otras Referencias Laborales: Nombres /puesto/teléfono fijo u celular"]
[]
[]
[]
["8. Empresa \n         y/o \n     Institución",null,null,null,null,null,null,null,null,null,null,null,null,"Tipo Sector/Giro del Negocio  y N° de trabajadores"]
["Unidad Orgánica/Área",null,null,null,null,null,null,null,null,null,null,null,null,"Puesto/Cargo"]
["Remuneración mensual fija (bruta)",null,null,null,null,null,null,null,null,null,null,null,null,"Motivo de retiro"]
["Jefe inmediato (Nombre ,cargo y teléfono)",null,null,null,null,null,null,null,null,null,null,null,null,"N° de personas a cargo"]
[]
["Fecha de inicio (dd/mm/aaaa)",null,null,null,null,null,null,null,"Fecha de término  (dd/mm/aaaa)",null,null,null,null,null,null,null,null,"Tiempo laborado en meses",null,null,null,null,null,{"$f":"DATEDIF(E178,N178,\"y\") & \" años \" & DATEDIF(E178,N178,\"ym\") & \" meses \" & DATEDIF(E178,N178,\"md\") & \" días\"","v":"0 años 0 meses 0 días"},null,null,null,null,{"$f":"N178-E178","v":0},null,null,null,{"$f":"DATEDIF(E178,N178,\"d\")","v":0}]
[]
["Descripción de las funciones principales relacionadas al puesto:"]
[]
["Otras Referencias Laborales: Nombres /puesto/teléfono fijo u celular"]
[]
[]
[]
["9. Empresa \n         y/o \n     Institución",null,null,null,null,null,null,null,null,null,null,null,null,"Tipo Sector/Giro del Negocio  y N° de trabajadores"]
["Unidad Orgánica/Área",null,null,null,null,null,null,null,null,null,null,null,null,"Puesto/Cargo"]
["Remuneración mensual fija (bruta)",null,null,null,null,null,null,null,null,null,null,null,null,"Motivo de retiro"]
["Jefe inmediato (Nombre ,cargo y teléfono)",null,null,null,null,null,null,null,null,null,null,null,null,"N° de personas a cargo"]
[]
["Fecha de inicio (dd/mm/aaaa)",null,null,null,null,null,null,null,"Fecha de término  (dd/mm/aaaa)",null,null,null,null,null,null,null,null,"Tiempo laborado en meses",null,null,null,null,null,{"$f":"DATEDIF(E191,N191,\"y\") & \" años \" & DATEDIF(E191,N191,\"ym\") & \" meses \" & DATEDIF(E191,N191,\"md\") & \" días\"","v":"0 años 0 meses 0 días"},null,null,null,null,{"$f":"N191-E191","v":0},null,null,null,{"$f":"DATEDIF(E191,N191,\"d\")","v":0}]
[]
["Descripción de las funciones principales relacionadas al puesto:"]
[]
["Otras Referencias Laborales: Nombres /puesto/teléfono fijo u celular"]
[]
[]
[]
["10. Empresa \n         y/o \n     Institución",null,null,null,null,null,null,null,null,null,null,null,null,"Tipo Sector/Giro del Negocio  y N° de trabajadores"]
["Unidad Orgánica/Área",null,null,null,null,null,null,null,null,null,null,null,null,"Puesto/Cargo"]
["Remuneración mensual fija (bruta)",null,null,null,null,null,null,null,null,null,null,null,null,"Motivo de retiro"]
["Jefe inmediato (Nombre ,cargo y teléfono)",null,null,null,null,null,null,null,null,null,null,null,null,"N° de personas a cargo"]
[]
["Fecha de inicio (dd/mm/aaaa)",null,null,null,null,null,null,null,"Fecha de término  (dd/mm/aaaa)",null,null,null,null,null,null,null,null,"Tiempo laborado en meses",null,null,null,null,null,{"$f":"DATEDIF(E204,N204,\"y\") & \" años \" & DATEDIF(E204,N204,\"ym\") & \" meses \" & DATEDIF(E204,N204,\"md\") & \" días\"","v":"0 años 0 meses 0 días"},null,null,null,null,{"$f":"N204-E204","v":0},null,null,null,{"$f":"DATEDIF(E204,N204,\"d\")","v":0}]
[null,null,null,null,null,null,null,null,null,null,null,null,null,null,null,null,null,null,null,null,null,null,null,null,null,null,null,null,{"$f":"SUM(AC2:AC204)","v":0}]
["Descripción de las funciones principales relacionadas al puesto:"]
[]
["Otras Referencias Laborales: Nombres /puesto/teléfono fijo u celular"]
[]
[]
[]
[]
[]
[null,null,null,null,null,null,null,null,null,null,null,null,null,null,null,null,null,null,"TOTAL",null,null,null,{"$f":" INT(AG214/365.2)&\" años, \"&INT((AG214-INT(AG214/365.2)*365.2)/30.42)&\" mes y \"&INT(AG214-(INT(AG214/365.2)*365.2+INT((AG214-INT(AG214/365.2)*365.2)/30.42)*30.42))&\" días\"","v":"0 años, 0 mes y 0 días"},null,null,null,null,null,null,null,null,null,{"$f":"SUM(AG88:AG209)","v":0}]
[]
["Disponibilidad para viajar al interior del pais (Siempre que lo requiera la convocatoria): ",null,null,null,null,null,null,null,null,null,null,null,null,null,null,null,null,null,"Si"]
[]
[]
["Experiencia Laboral no relacionada con el puesto"]
[]
["N°","Empresa y/o Institución",null,null,null,null,"Área",null,null,"Cargo desempeñado",null,null,null,"Remuneración mensual",null,"Motivo de retiro  ",null,null,"Fecha de inicio (dd/mm/aaaa)",null,"Fecha término (dd/mm/aaaa)",null,"Meses "]
[1,null,null,null,null,null,null,null,null,null,null,null,null,null,null,null,null,null,null,null,null,null,{"$f":" INT(AG222/365.1)&\" años, \"&INT((AG222-INT(AG222/365.1)*365.1)/30)&\" mes y \"&INT(AG222-(INT(AG222/365.1)*365.1+INT((AG222-INT(AG222/365.1)*365.1)/30)*30))&\" días\"","v":"0 años, 0 mes y 0 días"},null,null,null,null,null,null,null,null,null,{"$f":"DATEDIF(S222,U222,\"d\")","v":0}]
[2,null,null,null,null,null,null,null,null,null,null,null,null,null,null,null,null,null,null,null,null,null,"0 años, 0 mes y 0 días",null,null,null,null,null,null,null,null,null,{"$f":"DATEDIF(S223,U223,\"d\")","v":0}]
[3,null,null,null,null,null,null,null,null,null,null,null,null,null,null,null,null,null,null,null,null,null,"0 años, 0 mes y 0 días",null,null,null,null,null,null,null,null,null,{"$f":"DATEDIF(S224,U224,\"d\")","v":0}]
[4,null,null,null,null,null,null,null,null,null,null,null,null,null,null,null,null,null,null,null,null,null,"0 años, 0 mes y 0 días",null,null,null,null,null,null,null,null,null,{"$f":"DATEDIF(S225,U225,\"d\")","v":0}]
[5,null,null,null,null,null,null,null,null,null,null,null,null,null,null,null,null,null,null,null,null,null,"0 años, 0 mes y 0 días",null,null,null,null,null,null,null,null,null,{"$f":"DATEDIF(S226,U226,\"d\")","v":0}]
[null,null,null,null,null,null,null,null,null,null,null,null,null,null,null,null,null,null,null,null,"Total",null,"0 años, 0 mes y 0 días",null,null,null,null,null,null,null,null,null,{"$f":"SUM(AG222:AG226)","v":0}]
[]
["IV. INFORMACIÓN COMPLEMENTARIA"]
[]
["Conocimientos para el puesto: (Declarar los indicados en el aviso de convocatoria. No requieren documentación sustentatoria. Su validación se realizará a lo largo de la etapa de selección)"]
[]
[]
[]
["Otros requisitos: (Declarar conforme lo indicado en el perfil o convocatoria)"]
[]
[]
[]
[]
["Idiomas y/o dialectos ",null,null,null,null,null,null,null,null,null,null,null,null,null,"Ofimática (Word, Excel, Power Point, Visio u Project)"]
[]
["Idioma / dialecto",null,null,null,null,"(Marque con una \"X\" el nivel alcanzado)",null,null,null,null,null,null,null,null,"Ofimática",null,null,null,null,"(Marque con una \"X\" el nivel alcanzado)"]
[null,null,null,null,null,"Básico ",null,"Intermedio",null,null,"Avanzado",null,null,null,null,null,null,null,null,"Básico ",null,"Intermedio",null,"Avanzado"]
[]
[]
[]
[]
[]
[]
["En caso contar con la condición de Discapacidad, indicar el tipo discapacidad y apoyo que requiere para las etapas prescenciales del proceso de selección, adjuntando al presente la Resolución emitida por CONADIS"]
[]
["En caso ser Licenciado de las Fuerzas Armadas, indicarlo y adjuntar al presente la certificación oficial. "]
[]
["Mencione si es personal militar y/o policial en retiro"]
[]
["DECLARO haber revisado las bases del concurso que se encuentra en la página WEB del PROINVERSIÓN y acepto las condiciones de postulación, cumpliendo con todos los requisitos solicitados y contando con Disponibilidad Inmediata (***). Asimismo DECLARO que la información proporcionada es veraz y, en caso sea necesario, autorizo su investigación. De encontrarse información falsa o adulterada  acepto expresamente que la entidad proceda a mi retiro automático, sea del proceso de selección  o de la entidad si se produjo vinculación, sin perjuicio de aplicarse las sanciones legales que correspondan. \nDe otra parte, AUTORIZO  el tratamiento de mis datos personales para fines del proceso de selección en el que me encuentro participando."]
["(***) La Disponibilidad Inmediata implica que el postulante seleccionado, para el inicio labores, no deberá tener impedimento ni mantener vínculo laboral con entidad del estado, conforme a lo establecido por D.S. Nº 065-2011-PCM (Art.4). En caso que a la suscripción de contrato mantenga vínculo con el estado, debe presentar la Carta de Renuncia aceptada por la entidad contratante o Licencia sin goce emitido por el Área de Recursos Humanos o quién haga sus veces."]
[]
[]
["Fecha de presentación:",null,null,null,null,null,null,null,null,null,null,null,null,null,null,"Firma"]

{"sheet":"Hoja1 (2)","index":1,"n_rows":116,"n_cols":34,"rows_kept":116,"cut":false,"hidden":false,"merged":[[73,21,73,23],[74,21,74,23],[75,21,75,23],[79,21,79,23],[80,21,80,23],[81,21,81,23],[82,21,82,23],[83,21,83,23],[64,21,64,23],[65,21,65,23],[66,21,66,23],[67,21,67,23],[68,21,68,23],[69,21,69,23],[70,21,70,23],[71,21,71,23],[72,21,72,23],[77,0,77,24],[81,1,81,6],[81,7,81,12],[81,13,81,17],[82,1,82,6],[82,7,82,12],[73,7,73,12],[55,21,55,23],[56,21,56,23],[57,21,57,23],[48,18,48,19],[49,18,49,19],[50,18,50,19],[50,13,50,17],[51,13,51,17],[52,13,52,17],[53,13,53,17],[54,13,54,17],[55,13,55,17],[56,13,56,17],[51,18,51,19],[52,18,52,19],[53,18,53,19],[54,18,54,19],[55,18,55,19],[56,18,56,19],[54,21,54,23],[46,21,46,23],[46,18,46,19],[46,13,46,17],[42,0,42,24],[44,0,44,24],[45,0,45,24],[46,1,46,6],[46,7,46,12],[40,0,40,5],[40,6,40,10],[40,11,40,17],[40,18,40,24],[35,3,35,5],[35,6,35,10],[31,14,31,18],[32,14,32,18],[33,14,33,18],[34,14,34,18],[35,14,35,18],[36,14,36,18],[37,14,37,18],[37,3,37,5],[37,6,37,10],[37,11,37,13],[31,11,31,13],[33,21,33,23],[34,21,34,23],[35,21,35,23],[36,21,36,23],[37,21,37,23],[38,21,38,23],[85,21,85,23],[103,0,103,24],[84,21,84,23],[102,0,102,24],[39,0,39,5],[39,6,39,10],[39,11,39,17],[39,18,39,24],[36,0,36,2],[36,3,36,5],[36,6,36,10],[36,11,36,13],[34,0,34,2],[34,3,34,5],[34,6,34,10],[34,11,34,13],[38,0,38,2],[38,3,38,5],[15,0,15,8],[15,9,15,17],[15,18,15,24],[16,11,16,19],[17,11,17,13],[17,18,17,19],[17,14,17,17],[16,20,16,24],[17,21,17,23],[16,0,17,2],[16,3,17,5],[16,6,17,10],[18,21,18,23],[35,0,35,2],[32,0,32,2],[32,3,32,5],[92,0,92,24],[87,0,87,24],[89,0,89,24],[21,20,21,24],[19,0,19,2],[69,18,69,19],[82,13,82,17],[49,1,49,6],[49,7,49,12],[48,1,48,6],[48,7,48,12],[48,13,48,17],[49,13,49,17],[48,21,48,23],[49,21,49,23],[47,1,47,6],[47,7,47,12],[47,13,47,17],[47,18,47,19],[47,21,47,23],[107,0,107,24],[112,0,112,24],[111,0,111,11],[111,12,111,13],[114,20,116,24],[114,15,116,19],[114,0,116,4],[114,6,114,11],[116,6,116,7],[116,8,116,9],[116,10,116,11],[115,6,115,7],[115,8,115,9],[115,10,115,11],[106,0,106,24],[100,0,100,17],[101,0,101,1],[101,2,101,16],[101,17,101,18],[97,0,97,24],[95,5,95,19],[96,0,96,24],[93,0,93,24],[101,19,101,24],[38,6,38,10],[38,11,38,13],[38,14,38,18],[37,0,37,2],[18,11,18,13],[14,0,14,8],[14,9,14,17],[14,18,14,24],[33,0,33,2],[33,3,33,5],[33,6,33,10],[33,11,33,13],[35,11,35,13],[24,19,24,21],[24,22,24,24],[25,0,25,24],[26,0,26,6],[26,16,26,24],[32,6,32,10],[32,11,32,13],[29,0,29,24],[31,0,31,2],[31,3,31,5],[31,6,31,10],[32,21,32,23],[20,0,20,1],[23,19,23,21],[23,14,23,18],[23,0,23,9],[23,10,23,13],[21,0,21,1],[21,3,21,6],[21,7,21,13],[21,14,21,19],[27,13,27,15],[70,7,70,12],[70,13,70,17],[70,18,70,19],[71,1,71,6],[72,7,72,12],[72,13,72,17],[19,3,19,24],[20,3,20,6],[20,7,20,13],[20,14,20,19],[20,20,20,24],[52,1,52,6],[52,7,52,12],[53,1,53,6],[53,7,53,12],[52,21,52,23],[53,21,53,23],[50,1,50,6],[50,7,50,12],[51,1,51,6],[51,7,51,12],[50,21,50,23],[51,21,51,23],[31,21,31,23],[84,1,84,6],[84,7,84,12],[84,13,84,17],[84,18,84,19],[55,1,55,6],[55,7,55,12],[56,1,56,6],[56,7,56,12],[54,1,54,6],[71,7,71,12],[71,13,71,17],[71,18,71,19],[66,18,66,19],[67,1,67,6],[67,7,67,12],[67,13,67,17],[67,18,67,19],[68,1,68,6],[68,7,68,12],[68,13,68,17],[68,18,68,19],[69,1,69,6],[69,7,69,12],[69,13,69,17],[79,1,79,6],[79,7,79,12],[79,13,79,17],[80,1,80,6],[80,7,80,12],[80,13,80,17],[79,18,79,19],[83,1,83,6],[83,7,83,12],[83,13,83,17],[83,18,83,19],[80,18,80,19],[82,18,82,19],[81,18,81,19],[74,1,74,6],[74,7,74,12],[74,13,74,17],[74,18,74,19],[73,1,73,6],[5,0,5,5],[1,0,1,24],[2,0,2,24],[27,7,27,12],[27,0,27,6],[27,16,27,24],[18,0,18,2],[18,3,18,5],[18,6,18,10],[26,7,26,12],[26,13,26,15],[24,0,24,9],[24,10,24,13],[24,14,24,18],[18,14,18,17],[18,18,18,19],[73,13,73,17],[54,7,54,12],[12,0,12,24],[3,0,4,24],[6,9,6,24],[7,9,7,24],[8,0,10,24],[22,0,22,24],[23,22,23,24],[72,18,72,19],[73,18,73,19],[64,1,64,6],[64,7,64,12],[64,18,64,19],[64,13,64,17],[58,0,59,16],[61,0,61,24],[62,0,62,24],[65,13,65,17],[65,18,65,19],[66,1,66,6],[66,7,66,12],[66,13,66,17],[72,1,72,6],[65,1,65,6],[65,7,65,12],[70,1,70,6]]}
[]
["DIRECCIÓN REGIONAL DE SALUD HUÁNUCO"]
["RED DE SALUD LEONCIO PRADO"]
["ANEXO 02 (FICHA DEL POSTULANTE)"]
[]
[]
["PUESTO O CARGO AL QUE POSTULA"]
["NÚMERO DE CONVOCATORIA AL QUE POSTULA "]
["Estimado postulante, complete la información solicitada,  sin modificar la configuración del formato. Lo señalado en el presente documento cuenta con el carácter de Declaración Jurada."]
[]
[]
[]
["I. DATOS PERSONALES (De acuerdo a lo  registrado en su DNI)"]
[]
["Apellido paterno",null,null,null,null,null,null,null,null,"Apellido materno",null,null,null,null,null,null,null,null,"Nombres"]
[]
["Edad",null,null,"Estado civil",null,null,"Nacionalidad",null,null,null,null,"Lugar de Nacimiento",null,null,null,null,null,null,null,null,"Fecha de Nacimiento"]
[null,null,null,null,null,null,null,null,null,null,null,"Departamento",null,null,"Provincia",null,null,null,"Distrito",null,"Dia","Mes",null,null,"Año"]
[]
["Género",null,null,"Documentos"]
["F",null,"M","DNI",null,null,null,"RUC",null,null,null,null,null,null,"N° Código CONADIS",null,null,null,null,null,"N° Carnet de Fuerza Armada"]
[]
["Domicilio Actual",null,null,null,null,null,null,null,null,null,null,null,null,null,null,null,null,null,null,null,null,null,null,null,null,null,null,null,null,null,null,null,null,"Movistar"]
["Dirección",null,null,null,null,null,null,null,null,null,"N° / LT / MZ",null,null,null,"Departamento",null,null,null,null,"Provincia",null,null,"Distrito",null,null,null,null,null,null,null,null,null,null,"Claro"]
[null,null,null,null,null,null,null,null,null,null,null,null,null,null,null,null,null,null,null,null,null,null,null,null,null,null,null,null,null,null,null,null,null,"Entel"]
["TELÉFONOS / CORREO ELECTRONICO",null,null,null,null,null,null,null,null,null,null,null,null,null,null,null,null,null,null,null,null,null,null,null,null,null,null,null,null,null,null,null,null,"Bitel"]
["Teléfono fijo ",null,null,null,null,null,null,"N° Celular ",null,null,null,null,null,"Operador",null,null,"Correo electrónico personal"]
[]
[]
["II. FORMACIÓN ACADÉMICA"]
[]
["Tipo de Formación",null,null,"Especialidad",null,null,"Situación (incompleto, egresado, bachiller o titulado)",null,null,null,null,"Último ciclo de estudios concluidos (de encontrarse en curso )",null,null,"Centro de estudios",null,null,null,null,"Fecha inicio de estudios (indicar al menos mes y año)","Fecha término de estudios (indicar al menos mes y año)","Fecha de expedición de certificación (*)",null,null,"Número de Folio"]
["Universitaria"]
["Técnica superior (3 a 4 años)"]
["Secundaria"]
["Estudios de Post Grado"]
["Doctorado"]
["Maestría"]
["Segunda Especialización"]
["Información a consignar por postulantes profesionales Titulados y Colegiados",null,null,null,null,null," N° colegiatura",null,null,null,null,"Colegio Profesional",null,null,null,null,null,null,"Condicion a la Fecha (Habilitado y/o Inhabilitado)"]
[]
[]
["(*) Consignar la fecha de expedición del título, grado académico o certificado de estudios secundarios concluidos, según corresponda al nivel alcanzado y solicitado en el aviso de convocatoria. "]
[]
["Cursos y/o Programas de especialización"]
[]
["N°","Centro de estudios",null,null,null,null,null,"Tipo de capacitación",null,null,null,null,null,"Nombre de la capacitación",null,null,null,null,"Fecha de inicio \n(dd/mm/aaaa)",null,"Fecha de término\n(dd/mm/aaaa)","N° de Horas lectivas ",null,null,"Número de Folio"]
[1]
[2]
[3]
[4]
[5]
[6]
[7]
[8]
[9]
[10]
[null,null,null,null,null,null,null,null,null,null,null,null,null,null,null,null,null,null,null,null,"TOTAL"]
["Nota: Cada curso de especialización a consignar debe ser concluido y contener como mínimo 12 horas de capacitación y los diplomados no menos de 90 horas (Salvo indicación distinta señalada en la convocatoria)."]
[]
[]
["III. EXPERIENCIA LABORAL ESPECÍFICA (Relacionada directamente con el puesto, considerando lo establecido en la convocatoria. De haber ocupado más de un puesto en la misma entidad, consignar cada uno de ellos)"]
["La experiencia laboral requerida en este rubro corresponde al desempeño  de funciones en puestos que tienen  similitud con la vacante en concurso. De requerirse un nivel mínimo de desempeño en un cargo, éste será indicado en el aviso de convocatoria. Es indispensable detallar las funciones específicas desarrolladas."]
[]
["N°","Nombre de la Institución",null,null,null,null,null,"Puesto/Cargo",null,null,null,null,null,"Funciones principales",null,null,null,null,"Fecha de inicio \n(dd/mm/aaaa)",null,"Fecha de término\n(dd/mm/aaaa)","Tiempo de Servicio",null,null,"Número de Folio"]
[1,null,null,null,null,null,null,null,null,null,null,null,null,null,null,null,null,null,null,null,null,{"$f":"IF(ISERROR(CONCATENATE(DATEDIF(S66,U66,\"y\"),\" Años \",(DATEDIF(S66,U66,\"ym\")),\" Meses \",(DATEDIF(S66,U66,\"md\")),\" dias\")),\"Actualmente\",CONCATENATE(DATEDIF(S66,U66,\"y\"),\" Años \",(DATEDIF(S66,U66,\"ym\")),\" Meses \",(DATEDIF(S66,U66,\"md\")+1),\" Dias\"))","v":"0 Años 0 Meses 1 Dias"}]
[2,null,null,null,null,null,null,null,null,null,null,null,null,null,null,null,null,null,null,null,null,{"$f":"IF(ISERROR(CONCATENATE(DATEDIF(S67,U67,\"y\"),\" Años \",(DATEDIF(S67,U67,\"ym\")),\" Meses \",(DATEDIF(S67,U67,\"md\")),\" dias\")),\"Actualmente\",CONCATENATE(DATEDIF(S67,U67,\"y\"),\" Años \",(DATEDIF(S67,U67,\"ym\")),\" Meses \",(DATEDIF(S67,U67,\"md\")+1),\" Dias\"))","v":"0 Años 0 Meses 1 Dias"}]
[3,null,null,null,null,null,null,null,null,null,null,null,null,null,null,null,null,null,null,null,null,"0 Años 0 Meses 1 Dias"]
[4,null,null,null,null,null,null,null,null,null,null,null,null,null,null,null,null,null,null,null,null,"0 Años 0 Meses 1 Dias"]
[5,null,null,null,null,null,null,null,null,null,null,null,null,null,null,null,null,null,null,null,null,"0 Años 0 Meses 1 Dias"]
[6,null,null,null,null,null,null,null,null,null,null,null,null,null,null,null,null,null,null,null,null,"0 Años 0 Meses 1 Dias"]
[7,null,null,null,null,null,null,null,null,null,null,null,null,null,null,null,null,null,null,null,null,"0 Años 0 Meses 1 Dias"]
[8,null,null,null,null,null,null,null,null,null,null,null,null,null,null,null,null,null,null,null,null,"0 Años 0 Meses 1 Dias"]
[9,null,null,null,null,null,null,null,null,null,null,null,null,null,null,null,null,null,null,null,null,"0 Años 0 Meses 1 Dias"]
[10,null,null,null,null,null,null,null,null,null,null,null,null,null,null,null,null,null,null,null,null,"0 Años 0 Meses 1 Dias"]
[null,null,null,null,null,null,null,null,null,null,null,null,null,null,null,null,null,null,null,null,"Total"]
[]
["Experiencia Laboral no relacionada con el puesto"]
[]
["N°","Nombre de la Institución",null,null,null,null,null,"Puesto/Cargo",null,null,null,null,null,"Funciones principales",null,null,null,null,"Fecha de inicio \n(dd/mm/aaaa)",null,"Fecha de término\n(dd/mm/aaaa)","Tiempo de Servicio",null,null,"Número de Folio"]
[1,null,null,null,null,null,null,null,null,null,null,null,null,null,null,null,null,null,"2019-05-01",null,"2019-07-31",{"$f":"IF(ISERROR(CONCATENATE(DATEDIF(S81,U81,\"y\"),\" Años \",(DATEDIF(S81,U81,\"ym\")),\" Meses \",(DATEDIF(S81,U81,\"md\")),\" dias\")),\"Actualmente\",CONCATENATE(DATEDIF(S81,U81,\"y\"),\" Años \",(DATEDIF(S81,U81,\"ym\")),\" Meses \",(DATEDIF(S81,U81,\"md\")+1),\" Dias\"))","v":"0 Años 2 Meses 31 Dias"}]
[2,null,null,null,null,null,null,null,null,null,null,null,null,null,null,null,null,null,null,null,null,{"$f":"IF(ISERROR(CONCATENATE(DATEDIF(S82,U82,\"y\"),\" Años \",(DATEDIF(S82,U82,\"ym\")),\" Meses \",(DATEDIF(S82,U82,\"md\")),\" dias\")),\"Actualmente\",CONCATENATE(DATEDIF(S82,U82,\"y\"),\" Años \",(DATEDIF(S82,U82,\"ym\")),\" Meses \",(DATEDIF(S82,U82,\"md\")+1),\" Dias\"))","v":"0 Años 0 Meses 1 Dias"}]
[3,null,null,null,null,null,null,null,null,null,null,null,null,null,null,null,null,null,null,null,null,"0 Años 0 Meses 1 Dias"]
[4,null,null,null,null,null,null,null,null,null,null,null,null,null,null,null,null,null,null,null,null,"0 Años 0 Meses 1 Dias"]
[5,null,null,null,null,null,null,null,null,null,null,null,null,null,null,null,null,null,null,null,null,"0 Años 0 Meses 1 Dias"]
[null,null,null,null,null,null,null,null,null,null,null,null,null,null,null,null,null,null,null,null,"Total"]
[]
["IV. INFORMACIÓN COMPLEMENTARIA"]
[]
["¿Declara su voluntad de postular en ésta convocatoria de manera transparente y de acuerdo a las condiciones señaladas por la Institución?"]
[]
[null,null,null,null,null,null,"SI","(",")",null,null,null,null,null,null,null,null,null,"NO","(     )"]
[]
["¿Tiene familiares directos* dentro del Cuarto Grado de Consanguinidad, Segundo de Afinidad o por razón de matrimonio, trabajando en la RED DE SALUD Leoncio Prado?"]
[]
[null,null,"SI","(",")","Señale nombre y parentesco:_______________________________________________",null,null,null,null,null,null,null,null,null,null,null,null,null,null,"NO","(     )"]
[]
["En aplicación a lo establecido por el artículo 48º de la Ley Nº 29973, Ley General de Personas con Discapacidad, responder si ¿Tiene algún tipo de discapacidad?:"]
[]
[null,null,null,null,null,null,"SI","(",")",null,null,null,null,null,null,null,null,null,"NO","(     )"]
["(*) De ser positiva su respuesta, señale el tipo de discapacidad y registre el número de folio:"]
["Tipo :",null,null,null,null,null,null,null,null,null,null,null,null,null,null,null,null,"Folio :"]
[]
["¿Se encuentra usted comprendido dentro del registro de deudores alimentarios morosos, de acuerdo a la Ley N° 28970?"]
[]
[null,null,null,null,null,null,"SI","(",")",null,null,null,null,null,null,null,null,null,"NO","(     )"]
[]
["Indique si es Licenciado de las Fuerzas Armadas."]
[]
[null,null,null,null,null,null,"SI","(",")",null,null,null,null,null,null,null,null,null,"NO","(     )"]
[]
["(*) De ser positiva su respuesta, señale el número de folio:"]
[]
[]
["Fecha de presentación:",null,null,null,null,null,"Fecha",null,null,null,null,null,null,null,null,"Firma"]
[null,null,null,null,null,null,"Día",null,"Mes",null,"Año"]

{"sheet":"Hoja2","index":2,"n_rows":8,"n_cols":13,"rows_kept":8,"cut":false,"hidden":true,"merged":[]}
[null,"ESTADO CIVIL","GENERO","MEDIO INFORMATIVO","SITUACIÓN","SECUNDARIA","CONDICIÓN H","TECNICO SUPERIOR","MAESTRIA","DOCTORADO","SEGUNDA ESPECIALIZACIÓN","TIPO DE CAPACITACIÓN","DISPONIBILIDAD PARA VIAJAR "]
[null,"Seleccione…","Seleccione…","Seleccione…","Seleccione..","Seleccione..","Seleccione..","Seleccione..","Seleccione..","Seleccione..","Seleccione..","Seleccione..","Seleccione.."]
[null,"Soltero","Masculino","Web Institucionales","Incompleto ","Incompleta ","Habilitado","Incompleto ","Incompleto ","Incompleto ","Incompleto ","Master","Si"]
[null,"Casado","Femenino","Páginas Laborales","Egresado","Completa","Inhabilitado","Egresado","Egresado","Egresado","Completo","Diplomado","No"]
[null,"Divorciado",null,"Ferias Laborales","Bachiller ",null,null,"Titulado","Magister","Doctor",null,"Curso"]
[null,"Viudo",null,"Referido","Titulado",null,null,null,null,null,null,"Seminario"]
[null,"Conviviente",null,"Otros",null,null,null,null,null,null,null,"Taller"]
[null,null,null,null,null,null,null,null,null,null,null,"Conferencia "]